[Event "Titled Tuesday Blitz November 22 Late 2022"]
[White "Torres Dominguez, David"]
[Black "Lopez Mulet, Inigo"]
[WhiteFideId "2220857"]
[BlackFideId "22235620"]
[WhiteElo "2037"]
[BlackElo "2289"]
[Result "0-1"]
[Round "02"]
[TimeControl "180+1"]
[Date "2022.11.23"]
[WhiteClock "0:00:03"]
[BlackClock "0:00:25"]

1. e4 {[%clk 0:03:00]}  g6 {[%clk 0:02:59]} 2. Nc3 {[%clk 0:03:00]}  Bg7 {[%clk 0:03:00]} 3. f4 {[%clk 0:03:00]}  c5 {[%clk 0:02:57]} 4. Nf3 {[%clk 0:03:00]}  Nc6 {[%clk 0:02:56]} 5. Be2 {[%clk 0:02:59]}  d6 {[%clk 0:02:55]} 6. O-O {[%clk 0:02:59]}  h5 {[%clk 0:02:54]} 7. d3 {[%clk 0:02:57]}  Bg4 {[%clk 0:02:50]} 8. Ng5 {[%clk 0:02:50]}  Nf6 {[%clk 0:02:44]} 9. h3 {[%clk 0:02:46]}  Bxe2 {[%clk 0:02:43]} 10. Nxe2 {[%clk 0:02:46]}  h4 {[%clk 0:02:41]} 11. Bd2 {[%clk 0:02:36]}  b5 {[%clk 0:02:39]} 12. Qe1 {[%clk 0:02:24]}  Qb6 {[%clk 0:02:34]} 13. Kh2 {[%clk 0:02:11]}  a5 {[%clk 0:02:28]} 14. a3 {[%clk 0:02:10]}  Nh7 {[%clk 0:02:21]} 15. Bc3 {[%clk 0:01:57]}  Nd4 {[%clk 0:02:21]} 16. Nxd4 {[%clk 0:01:45]}  cxd4 {[%clk 0:02:21]} 17. Bd2 {[%clk 0:01:45]}  Nxg5 {[%clk 0:02:08]} 18. fxg5 {[%clk 0:01:45]}  Be5+ {[%clk 0:02:07]} 19. Bf4 {[%clk 0:01:43]}  Qc5 {[%clk 0:02:08]} 20. Qd2 {[%clk 0:01:20]}  Rc8 {[%clk 0:01:53]} 21. Rf2 {[%clk 0:01:16]}  a4 {[%clk 0:01:50]} 22. Raf1 {[%clk 0:01:14]}  Rh7 {[%clk 0:01:39]} 23. Kh1 {[%clk 0:01:04]}  Kf8 {[%clk 0:01:33]} 24. Bxe5 {[%clk 0:00:59]}  Qxe5 {[%clk 0:01:34]} 25. Kg1 {[%clk 0:00:51]}  Kg8 {[%clk 0:01:33]} 26. Rf4 {[%clk 0:00:49]}  Qxg5 {[%clk 0:01:28]} 27. R1f2 {[%clk 0:00:48]}  Qc5 {[%clk 0:01:27]} 28. Qe2 {[%clk 0:00:44]}  Qg5 {[%clk 0:01:22]} 29. Qf3 {[%clk 0:00:41]}  f6 {[%clk 0:01:22]} 30. Rg4 {[%clk 0:00:39]}  Qh5 {[%clk 0:01:08]} 31. e5 {[%clk 0:00:36]}  dxe5 {[%clk 0:00:59]} 32. Qd5+ {[%clk 0:00:35]}  Rf7 {[%clk 0:00:59]} 33. Qxb5 {[%clk 0:00:34]}  Qh6 {[%clk 0:00:56]} 34. Qd7 {[%clk 0:00:32]}  Rcf8 {[%clk 0:00:43]} 35. Qf5 {[%clk 0:00:23]}  Rg7 {[%clk 0:00:38]} 36. Qe4 {[%clk 0:00:19]}  Qc1+ {[%clk 0:00:34]} 37. Kh2 {[%clk 0:00:18]}  g5 {[%clk 0:00:34]} 38. g3 {[%clk 0:00:15]}  hxg3+ {[%clk 0:00:34]} 39. Rxg3 {[%clk 0:00:15]}  Qxb2 {[%clk 0:00:32]} 40. Qd5+ {[%clk 0:00:14]}  Rff7 {[%clk 0:00:31]} 41. Qd8+ {[%clk 0:00:14]}  Kh7 {[%clk 0:00:31]} 42. Qd7 {[%clk 0:00:13]}  Qb6 {[%clk 0:00:26]} 43. Qf5+ {[%clk 0:00:13]}  Kg8 {[%clk 0:00:27]} 44. h4 {[%clk 0:00:12]}  gxh4 {[%clk 0:00:25]} 45. Rh3 {[%clk 0:00:11]}  Rg5 {[%clk 0:00:20]} 46. Qf3 {[%clk 0:00:09]}  Qd6 {[%clk 0:00:18]} 47. Rxh4 {[%clk 0:00:07]}  e4+ {[%clk 0:00:18]} 48. Qf4 {[%clk 0:00:07]}  Qxf4+ {[%clk 0:00:18]} 49. Rfxf4 {[%clk 0:00:06]}  exd3 {[%clk 0:00:18]} 50. cxd3 {[%clk 0:00:05]}  e5 {[%clk 0:00:18]} 51. Rfg4 {[%clk 0:00:04]}  Rxg4 {[%clk 0:00:18]} 52. Rxg4+ {[%clk 0:00:05]}  Rg7 {[%clk 0:00:19]} 53. Rh4 {[%clk 0:00:04]}  Rh7 {[%clk 0:00:19]} 54. Rxh7 {[%clk 0:00:04]}  Kxh7 {[%clk 0:00:20]} 55. Kg3 {[%clk 0:00:04]}  Kg6 {[%clk 0:00:21]} 56. Kf3 {[%clk 0:00:05]}  Kf5 {[%clk 0:00:21]} 57. Kg3 {[%clk 0:00:04]}  Kg5 {[%clk 0:00:21]} 58. Kf3 {[%clk 0:00:03]}  f5 {[%clk 0:00:22]} 59. Ke2 {[%clk 0:00:02]}  e4 {[%clk 0:00:23]} 60. Kd2 {[%clk 0:00:02]}  Kf4 {[%clk 0:00:23]} 61. Ke2 {[%clk 0:00:02]}  e3 {[%clk 0:00:23]} 62. Ke1 {[%clk 0:00:02]}  Kf3 {[%clk 0:00:24]} 63. Kf1 {[%clk 0:00:03]}  Kg3 {[%clk 0:00:24]} 64. Ke2 {[%clk 0:00:02]}  Kg2 {[%clk 0:00:25]} 65. Ke1 {[%clk 0:00:02]}  f4 {[%clk 0:00:25]} 66. Ke2 {[%clk 0:00:02]}  f3+ {[%clk 0:00:26]} 67. Kd1 {[%clk 0:00:03]}  Kf2 {[%clk 0:00:25]} 0-1


[Site "https://www.chess.com"]

[Event "Titled Tuesday Blitz November 22 Late 2022"]
[White "Trent, Lawrence"]
[Black "Oparin, Grigoriy"]
[WhiteFideId "408638"]
[BlackFideId "24125890"]
[WhiteElo "2458"]
[BlackElo "2639"]
[Result "1-0"]
[Round "02"]
[TimeControl "180+1"]
[Date "2022.11.23"]
[WhiteClock "0:00:17"]
[BlackClock "0:00:12"]

1. Nc3 {[%clk 0:03:00]}  a6 {[%clk 0:02:59]} 2. d4 {[%clk 0:03:00]}  b5 {[%clk 0:02:59]} 3. e4 {[%clk 0:03:00]}  Bb7 {[%clk 0:03:00]} 4. Bd3 {[%clk 0:03:00]}  e6 {[%clk 0:02:59]} 5. Nf3 {[%clk 0:03:00]}  c5 {[%clk 0:02:59]} 6. dxc5 {[%clk 0:03:00]}  Bxc5 {[%clk 0:03:00]} 7. O-O {[%clk 0:03:00]}  Ne7 {[%clk 0:03:00]} 8. Qe2 {[%clk 0:02:53]}  Nbc6 {[%clk 0:03:00]} 9. Be3 {[%clk 0:02:53]}  Qb6 {[%clk 0:02:59]} 10. Bxc5 {[%clk 0:02:51]}  Qxc5 {[%clk 0:03:00]} 11. a3 {[%clk 0:02:49]}  Ng6 {[%clk 0:03:00]} 12. Rae1 {[%clk 0:02:48]}  Nf4 {[%clk 0:02:59]} 13. Qe3 {[%clk 0:02:47]}  Qxe3 {[%clk 0:02:59]} 14. Rxe3 {[%clk 0:02:48]}  Ke7 {[%clk 0:02:57]} 15. g3 {[%clk 0:02:47]}  Ng6 {[%clk 0:02:57]} 16. e5 {[%clk 0:02:45]}  f6 {[%clk 0:02:52]} 17. exf6+ {[%clk 0:02:41]}  gxf6 {[%clk 0:02:52]} 18. Rd1 {[%clk 0:02:30]}  Rad8 {[%clk 0:02:49]} 19. Be4 {[%clk 0:02:21]}  Kf7 {[%clk 0:02:36]} 20. Nd4 {[%clk 0:02:19]}  Nge7 {[%clk 0:02:21]} 21. Nxc6 {[%clk 0:02:08]}  Bxc6 {[%clk 0:02:22]} 22. Bxc6 {[%clk 0:02:07]}  dxc6 {[%clk 0:02:23]} 23. Red3 {[%clk 0:02:06]}  Rxd3 {[%clk 0:02:23]} 24. Rxd3 {[%clk 0:02:06]}  Nd5 {[%clk 0:02:23]} 25. Ne4 {[%clk 0:02:05]}  a5 {[%clk 0:02:22]} 26. c4 {[%clk 0:01:48]}  bxc4 {[%clk 0:02:21]} 27. Rd4 {[%clk 0:01:49]}  Rb8 {[%clk 0:02:17]} 28. Rxc4 {[%clk 0:01:48]}  Ne7 {[%clk 0:02:14]} 29. Rc2 {[%clk 0:01:42]}  f5 {[%clk 0:02:11]} 30. Nc5 {[%clk 0:01:39]}  Rd8 {[%clk 0:02:07]} 31. Re2 {[%clk 0:01:38]}  Rd6 {[%clk 0:02:02]} 32. Nb3 {[%clk 0:01:26]}  Rd5 {[%clk 0:02:01]} 33. Rd2 {[%clk 0:01:23]}  a4 {[%clk 0:01:43]} 34. Rxd5 {[%clk 0:01:23]}  Nxd5 {[%clk 0:01:44]} 35. Nc5 {[%clk 0:01:24]}  Nb6 {[%clk 0:01:43]} 36. b3 {[%clk 0:01:13]}  axb3 {[%clk 0:01:42]} 37. Nxb3 {[%clk 0:01:13]}  Ke7 {[%clk 0:01:42]} 38. Kf1 {[%clk 0:01:13]}  Kd6 {[%clk 0:01:42]} 39. Ke2 {[%clk 0:01:13]}  c5 {[%clk 0:01:42]} 40. Nd2 {[%clk 0:01:07]}  Kd5 {[%clk 0:01:41]} 41. Kd3 {[%clk 0:01:07]}  c4+ {[%clk 0:01:35]} 42. Kc3 {[%clk 0:01:03]}  Kc5 {[%clk 0:01:35]} 43. Nf3 {[%clk 0:01:00]}  Na4+ {[%clk 0:01:34]} 44. Kc2 {[%clk 0:01:00]}  Kd5 {[%clk 0:01:29]} 45. h4 {[%clk 0:01:00]}  h6 {[%clk 0:01:28]} 46. Nd2 {[%clk 0:00:57]}  e5 {[%clk 0:01:27]} 47. Nf1 {[%clk 0:00:54]}  f4 {[%clk 0:01:12]} 48. g4 {[%clk 0:00:52]}  e4 {[%clk 0:01:12]} 49. g5 {[%clk 0:00:44]}  hxg5 {[%clk 0:01:13]} 50. hxg5 {[%clk 0:00:45]}  Ke5 {[%clk 0:01:01]} 51. Nd2 {[%clk 0:00:42]}  Kf5 {[%clk 0:00:58]} 52. Nxe4 {[%clk 0:00:36]}  Nb6 {[%clk 0:00:54]} 53. f3 {[%clk 0:00:30]}  Na4 {[%clk 0:00:49]} 54. Kd2 {[%clk 0:00:26]}  Kg6 {[%clk 0:00:48]} 55. Nd6 {[%clk 0:00:21]}  c3+ {[%clk 0:00:46]} 56. Kd3 {[%clk 0:00:19]}  Kxg5 {[%clk 0:00:44]} 57. Ne4+ {[%clk 0:00:19]}  Kh4 {[%clk 0:00:42]} 58. Nxc3 {[%clk 0:00:20]}  Nb6 {[%clk 0:00:41]} 59. Ne2 {[%clk 0:00:20]}  Kg5 {[%clk 0:00:36]} 60. Kd4 {[%clk 0:00:20]}  Na4 {[%clk 0:00:31]} 61. Nc3 {[%clk 0:00:19]}  Nb6 {[%clk 0:00:28]} 62. a4 {[%clk 0:00:19]}  Kh4 {[%clk 0:00:26]} 63. a5 {[%clk 0:00:20]}  Nc8 {[%clk 0:00:20]} 64. Ne2 {[%clk 0:00:19]}  Kh3 {[%clk 0:00:17]} 65. Nxf4+ {[%clk 0:00:17]}  Kg3 {[%clk 0:00:17]} 66. Ke3 {[%clk 0:00:14]}  Na7 {[%clk 0:00:12]} 67. Ne2+ {[%clk 0:00:15]}  Kh4 {[%clk 0:00:11]} 68. Kd4 {[%clk 0:00:15]}  Kg5 {[%clk 0:00:12]} 69. Kc5 {[%clk 0:00:16]}  Nc8 {[%clk 0:00:12]} 70. Kc6 {[%clk 0:00:15]}  Kf5 {[%clk 0:00:12]} 71. a6 {[%clk 0:00:15]}  Na7+ {[%clk 0:00:12]} 72. Kb7 {[%clk 0:00:16]}  Nb5 {[%clk 0:00:12]} 73. a7 {[%clk 0:00:16]}  Nxa7 {[%clk 0:00:12]} 74. Kxa7 {[%clk 0:00:17]} 1-0


[Site "https://www.chess.com"]

[Event "Titled Tuesday Blitz November 22 Late 2022"]
[White "Walentukiewicz, Michal"]
[Black "Curtis, John"]
[WhiteFideId "1126903"]
[BlackFideId "3200256"]
[WhiteElo "2026"]
[BlackElo "2203"]
[Result "1-0"]
[Round "02"]
[TimeControl "180+1"]
[Date "2022.11.23"]
[WhiteClock "0:01:22"]
[BlackClock "0:01:09"]

1. g3 {[%clk 0:03:00]}  Nf6 {[%clk 0:02:58]} 2. Bg2 {[%clk 0:03:00]}  g6 {[%clk 0:02:57]} 3. Nf3 {[%clk 0:02:58]}  d5 {[%clk 0:02:57]} 4. c4 {[%clk 0:02:58]}  c6 {[%clk 0:02:53]} 5. cxd5 {[%clk 0:02:56]}  cxd5 {[%clk 0:02:54]} 6. O-O {[%clk 0:02:54]}  Bg7 {[%clk 0:02:54]} 7. d3 {[%clk 0:02:52]}  O-O {[%clk 0:02:54]} 8. Nc3 {[%clk 0:02:50]}  Nc6 {[%clk 0:02:55]} 9. e4 {[%clk 0:02:48]}  dxe4 {[%clk 0:02:40]} 10. dxe4 {[%clk 0:02:48]}  Qxd1 {[%clk 0:02:39]} 11. Rxd1 {[%clk 0:02:47]}  Bg4 {[%clk 0:02:39]} 12. h3 {[%clk 0:02:41]}  Bxf3 {[%clk 0:02:38]} 13. Bxf3 {[%clk 0:02:40]}  Rad8 {[%clk 0:02:36]} 14. Be3 {[%clk 0:02:38]}  e5 {[%clk 0:02:26]} 15. Nd5 {[%clk 0:02:29]}  Nxd5 {[%clk 0:02:24]} 16. exd5 {[%clk 0:02:27]}  Nd4 {[%clk 0:02:24]} 17. Kg2 {[%clk 0:02:13]}  Nc2 {[%clk 0:02:20]} 18. Rac1 {[%clk 0:02:11]}  Nxe3+ {[%clk 0:02:18]} 19. fxe3 {[%clk 0:02:11]}  Rd7 {[%clk 0:02:04]} 20. e4 {[%clk 0:02:06]}  f5 {[%clk 0:01:53]} 21. Rc4 {[%clk 0:02:02]}  Rfd8 {[%clk 0:01:45]} 22. Rdc1 {[%clk 0:02:00]}  Bf8 {[%clk 0:01:45]} 23. Rc7 {[%clk 0:01:55]}  Bd6 {[%clk 0:01:45]} 24. Rxd7 {[%clk 0:01:55]}  Rxd7 {[%clk 0:01:45]} 25. g4 {[%clk 0:01:54]}  f4 {[%clk 0:01:44]} 26. g5 {[%clk 0:01:54]}  Rc7 {[%clk 0:01:42]} 27. Rxc7 {[%clk 0:01:53]}  Bxc7 {[%clk 0:01:43]} 28. Bg4 {[%clk 0:01:54]}  Kg7 {[%clk 0:01:43]} 29. Kf3 {[%clk 0:01:53]}  h6 {[%clk 0:01:43]} 30. gxh6+ {[%clk 0:01:52]}  Kxh6 {[%clk 0:01:43]} 31. Ke2 {[%clk 0:01:53]}  Kg5 {[%clk 0:01:44]} 32. Kf3 {[%clk 0:01:53]}  Kh4 {[%clk 0:01:44]} 33. Bc8 {[%clk 0:01:52]}  b6 {[%clk 0:01:43]} 34. a4 {[%clk 0:01:40]}  a5 {[%clk 0:01:38]} 35. Be6 {[%clk 0:01:37]}  Bd6 {[%clk 0:01:38]} 36. Bf7 {[%clk 0:01:36]}  Kxh3 {[%clk 0:01:31]} 37. Bxg6 {[%clk 0:01:37]}  Kh2 {[%clk 0:01:31]} 38. Bh5 {[%clk 0:01:33]}  Kg1 {[%clk 0:01:29]} 39. Kg4 {[%clk 0:01:33]}  Kf2 {[%clk 0:01:30]} 40. Kf5 {[%clk 0:01:33]}  Ke3 {[%clk 0:01:30]} 41. Ke6 {[%clk 0:01:34]}  Bb8 {[%clk 0:01:27]} 42. d6 {[%clk 0:01:34]}  f3 {[%clk 0:01:27]} 43. Bxf3 {[%clk 0:01:26]}  Kxf3 {[%clk 0:01:27]} 44. Kxe5 {[%clk 0:01:27]}  Ke3 {[%clk 0:01:23]} 45. Kd5 {[%clk 0:01:27]}  Kd3 {[%clk 0:01:17]} 46. e5 {[%clk 0:01:27]}  Kc2 {[%clk 0:01:14]} 47. e6 {[%clk 0:01:27]}  b5 {[%clk 0:01:11]} 48. axb5 {[%clk 0:01:25]}  a4 {[%clk 0:01:10]} 49. e7 {[%clk 0:01:24]}  Kxb2 {[%clk 0:01:07]} 50. e8=Q {[%clk 0:01:22]}  Bxd6 {[%clk 0:01:07]} 51. Kxd6 {[%clk 0:01:23]}  a3 {[%clk 0:01:07]} 52. b6 {[%clk 0:01:23]}  a2 {[%clk 0:01:08]} 53. Qa4 {[%clk 0:01:23]}  a1=Q {[%clk 0:01:08]} 54. Qxa1+ {[%clk 0:01:21]}  Kxa1 {[%clk 0:01:09]} 55. b7 {[%clk 0:01:22]}  Kb2 {[%clk 0:01:09]} 56. b8=Q+ {[%clk 0:01:22]}  Kc3 {[%clk 0:01:09]} 1-0


[Site "https://www.chess.com"]

[Event "Titled Tuesday Blitz November 22 Late 2022"]
[White "Weetik, Vjacheslav"]
[Black "Tarnowska, Aleksandra"]
[WhiteFideId "4153472"]
[BlackFideId "1180967"]
[WhiteElo "2469"]
[BlackElo "1776"]
[Result "1-0"]
[Round "02"]
[TimeControl "180+1"]
[Date "2022.11.23"]
[WhiteClock "0:00:25"]
[BlackClock "0:00:01"]

1. d4 {[%clk 0:02:59]}  d5 {[%clk 0:03:00]} 2. Nf3 {[%clk 0:02:59]}  Nf6 {[%clk 0:02:59]} 3. c4 {[%clk 0:02:59]}  c6 {[%clk 0:02:58]} 4. Nc3 {[%clk 0:03:00]}  Bf5 {[%clk 0:02:56]} 5. cxd5 {[%clk 0:02:59]}  cxd5 {[%clk 0:02:55]} 6. Qb3 {[%clk 0:02:59]}  Qb6 {[%clk 0:02:47]} 7. Nxd5 {[%clk 0:02:47]}  Nxd5 {[%clk 0:02:15]} 8. Qxd5 {[%clk 0:02:46]}  e6 {[%clk 0:02:13]} 9. Qb3 {[%clk 0:02:45]}  Qxb3 {[%clk 0:01:43]} 10. axb3 {[%clk 0:02:44]}  a6 {[%clk 0:01:39]} 11. Ne5 {[%clk 0:02:35]}  Bc2 {[%clk 0:01:34]} 12. g3 {[%clk 0:02:26]}  Bxb3 {[%clk 0:01:32]} 13. Bg2 {[%clk 0:02:25]}  Ra7 {[%clk 0:01:11]} 14. Bd2 {[%clk 0:02:14]}  Nd7 {[%clk 0:01:08]} 15. Rc1 {[%clk 0:02:10]}  Nxe5 {[%clk 0:00:54]} 16. dxe5 {[%clk 0:02:10]}  b6 {[%clk 0:00:50]} 17. O-O {[%clk 0:01:54]}  Bc5 {[%clk 0:00:40]} 18. Be3 {[%clk 0:01:36]}  Bxe3 {[%clk 0:00:38]} 19. Rc8+ {[%clk 0:01:34]}  Ke7 {[%clk 0:00:36]} 20. Rxh8 {[%clk 0:01:35]}  Bd4 {[%clk 0:00:33]} 21. Rxh7 {[%clk 0:01:19]}  Bxe5 {[%clk 0:00:32]} 22. Rh4 {[%clk 0:01:15]}  a5 {[%clk 0:00:31]} 23. Re4 {[%clk 0:01:08]}  Bf6 {[%clk 0:00:28]} 24. Re3 {[%clk 0:01:06]}  Bc4 {[%clk 0:00:24]} 25. b3 {[%clk 0:01:05]}  Bb5 {[%clk 0:00:14]} 26. Rc1 {[%clk 0:00:51]}  Bd4 {[%clk 0:00:14]} 27. Re4 {[%clk 0:00:50]}  Bc5 {[%clk 0:00:13]} 28. e3 {[%clk 0:00:45]}  Rd7 {[%clk 0:00:08]} 29. h4 {[%clk 0:00:43]}  Rd3 {[%clk 0:00:07]} 30. Rb1 {[%clk 0:00:38]}  Rd2 {[%clk 0:00:05]} 31. Rg4 {[%clk 0:00:33]}  Bd3 {[%clk 0:00:04]} 32. Rc1 {[%clk 0:00:30]}  g6 {[%clk 0:00:04]} 33. Bf3 {[%clk 0:00:28]}  Rb2 {[%clk 0:00:04]} 34. Bd1 {[%clk 0:00:25]}  Bf5 {[%clk 0:00:03]} 35. Rf4 {[%clk 0:00:26]}  Bd6 {[%clk 0:00:01]} 36. Rfc4 {[%clk 0:00:25]} 1-0


[Site "https://www.chess.com"]

[Event "Titled Tuesday Blitz November 22 Late 2022"]
[White "Wen, Tommy"]
[Black "Cortes Orihuela, Javier"]
[WhiteFideId "30952255"]
[BlackFideId "3414329"]
[WhiteElo "2733"]
[BlackElo "2080"]
[Result "1-0"]
[Round "02"]
[TimeControl "180+1"]
[Date "2022.11.23"]
[WhiteClock "0:00:41"]
[BlackClock "0:00:28"]

1. e4 {[%clk 0:03:00]}  e5 {[%clk 0:02:59]} 2. Nf3 {[%clk 0:03:01]}  Nc6 {[%clk 0:02:58]} 3. Bb5 {[%clk 0:03:01]}  a6 {[%clk 0:02:58]} 4. Ba4 {[%clk 0:03:02]}  Nf6 {[%clk 0:02:58]} 5. O-O {[%clk 0:03:02]}  Be7 {[%clk 0:02:58]} 6. Re1 {[%clk 0:03:02]}  b5 {[%clk 0:02:59]} 7. Bb3 {[%clk 0:03:03]}  d6 {[%clk 0:02:57]} 8. c3 {[%clk 0:03:02]}  O-O {[%clk 0:02:56]} 9. h3 {[%clk 0:03:02]}  Nb8 {[%clk 0:02:57]} 10. d4 {[%clk 0:03:02]}  Nbd7 {[%clk 0:02:57]} 11. Nbd2 {[%clk 0:03:03]}  Bb7 {[%clk 0:02:55]} 12. Bc2 {[%clk 0:03:03]}  Re8 {[%clk 0:02:55]} 13. Nf1 {[%clk 0:03:03]}  Bf8 {[%clk 0:02:54]} 14. Ng3 {[%clk 0:03:03]}  g6 {[%clk 0:02:54]} 15. b3 {[%clk 0:03:02]}  c6 {[%clk 0:02:48]} 16. Bg5 {[%clk 0:02:45]}  Qc7 {[%clk 0:02:48]} 17. a4 {[%clk 0:02:38]}  h6 {[%clk 0:02:40]} 18. Be3 {[%clk 0:02:34]}  Rec8 {[%clk 0:02:31]} 19. Qd2 {[%clk 0:02:30]}  h5 {[%clk 0:02:27]} 20. Rec1 {[%clk 0:02:26]}  d5 {[%clk 0:02:03]} 21. dxe5 {[%clk 0:01:44]}  Nxe4 {[%clk 0:01:41]} 22. Bxe4 {[%clk 0:01:09]}  dxe4 {[%clk 0:01:42]} 23. Nxe4 {[%clk 0:01:09]}  Re8 {[%clk 0:01:16]} 24. Qxd7 {[%clk 0:01:07]}  Qxd7 {[%clk 0:01:15]} 25. Nf6+ {[%clk 0:01:07]}  Kg7 {[%clk 0:01:12]} 26. Nxd7 {[%clk 0:01:08]}  Red8 {[%clk 0:01:03]} 27. Nxf8 {[%clk 0:01:05]}  Kxf8 {[%clk 0:01:03]} 28. Rd1 {[%clk 0:01:05]}  Re8 {[%clk 0:00:55]} 29. Rd7 {[%clk 0:01:03]}  Bc8 {[%clk 0:00:55]} 30. Rc7 {[%clk 0:01:00]}  Be6 {[%clk 0:00:55]} 31. Rxc6 {[%clk 0:00:56]}  Bxb3 {[%clk 0:00:54]} 32. axb5 {[%clk 0:00:56]}  axb5 {[%clk 0:00:55]} 33. Rxa8 {[%clk 0:00:55]}  Rxa8 {[%clk 0:00:56]} 34. Rb6 {[%clk 0:00:53]}  Bc4 {[%clk 0:00:53]} 35. Nd4 {[%clk 0:00:53]}  Ra3 {[%clk 0:00:33]} 36. Nxb5 {[%clk 0:00:42]}  Bxb5 {[%clk 0:00:31]} 37. Rxb5 {[%clk 0:00:43]}  Rxc3 {[%clk 0:00:31]} 38. Rc5 {[%clk 0:00:42]}  Rd3 {[%clk 0:00:30]} 39. Kf1 {[%clk 0:00:41]}  Rd1+ {[%clk 0:00:30]} 40. Ke2 {[%clk 0:00:41]}  Rg1 {[%clk 0:00:30]} 41. Kf3 {[%clk 0:00:41]}  Rd1 {[%clk 0:00:28]} 42. Bg5 {[%clk 0:00:41]} 1-0


[Site "https://www.chess.com"]

[Event "Titled Tuesday Blitz November 22 Late 2022"]
[White "Young, Ryan"]
[Black "Yi, Richard"]
[WhiteFideId "2049945"]
[BlackFideId "2079518"]
[WhiteElo "2298"]
[BlackElo "2147"]
[Result "1-0"]
[Round "02"]
[TimeControl "180+1"]
[Date "2022.11.23"]
[WhiteClock "0:00:02"]
[BlackClock "0:00:04"]

1. e4 {[%clk 0:03:00]}  c6 {[%clk 0:02:56]} 2. d4 {[%clk 0:03:00]}  d5 {[%clk 0:02:55]} 3. exd5 {[%clk 0:03:01]}  cxd5 {[%clk 0:02:54]} 4. Bd3 {[%clk 0:03:01]}  Nc6 {[%clk 0:02:51]} 5. c3 {[%clk 0:03:01]}  Nf6 {[%clk 0:02:51]} 6. h3 {[%clk 0:03:01]}  e5 {[%clk 0:02:50]} 7. dxe5 {[%clk 0:03:00]}  Nxe5 {[%clk 0:02:48]} 8. Bb5+ {[%clk 0:02:59]}  Bd7 {[%clk 0:02:46]} 9. Bxd7+ {[%clk 0:02:59]}  Qxd7 {[%clk 0:02:44]} 10. Ne2 {[%clk 0:02:56]}  Bc5 {[%clk 0:02:35]} 11. O-O {[%clk 0:02:53]}  O-O {[%clk 0:02:30]} 12. Bf4 {[%clk 0:02:46]}  Ng6 {[%clk 0:02:27]} 13. Bg3 {[%clk 0:02:44]}  Rfe8 {[%clk 0:02:24]} 14. Nd2 {[%clk 0:02:40]}  Nh5 {[%clk 0:02:22]} 15. Bh2 {[%clk 0:02:35]}  Qb5 {[%clk 0:02:04]} 16. Nb3 {[%clk 0:01:48]}  Qxe2 {[%clk 0:01:32]} 17. Nxc5 {[%clk 0:01:37]}  Qxb2 {[%clk 0:01:22]} 18. Qxd5 {[%clk 0:01:29]}  Nhf4 {[%clk 0:01:21]} 19. Bxf4 {[%clk 0:01:29]}  Nxf4 {[%clk 0:01:21]} 20. Qxb7 {[%clk 0:01:21]}  Qxc3 {[%clk 0:01:16]} 21. Nb3 {[%clk 0:01:06]}  a5 {[%clk 0:01:09]} 22. Rad1 {[%clk 0:00:39]}  Rab8 {[%clk 0:01:00]} 23. Qa7 {[%clk 0:00:28]}  Qc6 {[%clk 0:00:58]} 24. f3 {[%clk 0:00:20]}  Qg6 {[%clk 0:00:53]} 25. Rd2 {[%clk 0:00:07]}  Ra8 {[%clk 0:00:49]} 26. Qc5 {[%clk 0:00:03]}  Nxh3+ {[%clk 0:00:05]} 27. Kh2 {[%clk 0:00:02]}  Nf4 {[%clk 0:00:04]} 28. Qd6 {[%clk 0:00:02]} 1-0


[Site "https://www.chess.com"]

[Event "Titled Tuesday Blitz November 22 Late 2022"]
[White "vjecspec"]
[Black "Kravtsiv, Martyn"]
[BlackFideId "14113147"]
[WhiteElo "2560"]
[BlackElo "2694"]
[Result "1/2-1/2"]
[Round "02"]
[TimeControl "180+1"]
[Date "2022.11.23"]
[WhiteClock "0:00:21"]
[BlackClock "0:00:09"]

1. e4 {[%clk 0:03:00]}  e5 {[%clk 0:02:59]} 2. Nf3 {[%clk 0:03:00]}  Nc6 {[%clk 0:02:59]} 3. Bb5 {[%clk 0:03:01]}  a6 {[%clk 0:02:59]} 4. Ba4 {[%clk 0:03:01]}  Nf6 {[%clk 0:02:59]} 5. O-O {[%clk 0:03:01]}  Be7 {[%clk 0:02:59]} 6. Re1 {[%clk 0:03:00]}  b5 {[%clk 0:02:58]} 7. Bb3 {[%clk 0:03:00]}  O-O {[%clk 0:02:59]} 8. c3 {[%clk 0:03:00]}  d5 {[%clk 0:02:58]} 9. d4 {[%clk 0:03:01]}  Nxe4 {[%clk 0:02:49]} 10. dxe5 {[%clk 0:02:52]}  Be6 {[%clk 0:02:48]} 11. Nbd2 {[%clk 0:02:49]}  Nc5 {[%clk 0:02:46]} 12. Bc2 {[%clk 0:02:49]}  Bg4 {[%clk 0:02:44]} 13. h3 {[%clk 0:02:47]}  Bh5 {[%clk 0:02:42]} 14. Nb3 {[%clk 0:02:40]}  Ne6 {[%clk 0:02:35]} 15. g4 {[%clk 0:02:19]}  Bg6 {[%clk 0:02:34]} 16. Bf5 {[%clk 0:02:20]}  Re8 {[%clk 0:02:16]} 17. Nbd4 {[%clk 0:02:17]}  Ncxd4 {[%clk 0:02:12]} 18. cxd4 {[%clk 0:02:15]}  c5 {[%clk 0:02:11]} 19. dxc5 {[%clk 0:02:00]}  Bxc5 {[%clk 0:02:10]} 20. Bxe6 {[%clk 0:01:54]}  fxe6 {[%clk 0:02:06]} 21. Nd4 {[%clk 0:01:54]}  Bxd4 {[%clk 0:02:01]} 22. Qxd4 {[%clk 0:01:53]}  Rc8 {[%clk 0:02:01]} 23. Be3 {[%clk 0:01:44]}  Qh4 {[%clk 0:01:55]} 24. Kh2 {[%clk 0:01:30]}  Rf8 {[%clk 0:01:53]} 25. Rac1 {[%clk 0:01:14]}  Bc2 {[%clk 0:01:04]} 26. f4 {[%clk 0:01:07]}  h5 {[%clk 0:01:00]} 27. Bf2 {[%clk 0:00:58]}  Qe7 {[%clk 0:00:58]} 28. Qd2 {[%clk 0:00:51]}  Be4 {[%clk 0:00:45]} 29. Rxc8 {[%clk 0:00:50]}  Rxc8 {[%clk 0:00:45]} 30. Rc1 {[%clk 0:00:48]}  Rxc1 {[%clk 0:00:35]} 31. Qxc1 {[%clk 0:00:49]}  hxg4 {[%clk 0:00:34]} 32. hxg4 {[%clk 0:00:49]}  Kh7 {[%clk 0:00:26]} 33. Qc5 {[%clk 0:00:43]}  Qf7 {[%clk 0:00:26]} 34. Kg3 {[%clk 0:00:40]}  Qg6 {[%clk 0:00:19]} 35. Qe7 {[%clk 0:00:34]}  Bb1 {[%clk 0:00:15]} 36. Qh4+ {[%clk 0:00:33]}  Kg8 {[%clk 0:00:14]} 37. Qd8+ {[%clk 0:00:33]}  Kh7 {[%clk 0:00:14]} 38. Qh4+ {[%clk 0:00:33]}  Kg8 {[%clk 0:00:12]} 39. Qd8+ {[%clk 0:00:22]}  Kh7 {[%clk 0:00:09]} 40. Qh4+ {[%clk 0:00:21]} 1/2-1/2


[Site "https://www.chess.com"]